bitfinex/quotes_ETHUSD_20241203
["timestamp","ask_amount","ask_price","bid_price","bid_amount"]
[1733209597138,1.5454,3630.0,3628.9,2.75565]
[1733209597498,1.5454,3630.0,3629.1,1.5927]
[1733209597637,1.5454,3630.0,3629.5,2.75519]
[1733209597838,1.5454,3630.0,3629.2,0.0485402]
[1733209598146,1.5454,3630.0,3629.6,0.04833598]
[1733209598353,0.03443676,3629.9,3628.6,1.6217]
[1733209598646,0.03443676,3629.9,3628.7,0.04496892]
[1733209598647,0.15798368,3629.8,3628.7,0.04496892]
[1733209598957,1.53421517,3630.0,3628.7,0.04496892]
[1733209599125,4.28486591,3630.6,3629.2,0.55]
[1733209599454,7.03885591,3631.1,3629.9,2.75486]
[1733209599748,3.09872266,3630.9,3629.3,0.04466252]
[1733209599952,0.34458266,3630.9,3630.0,0.04423565]
[1733209600107,0.73835086,3630.8,3629.1,1.6282]
[1733209600309,0.42580272,3631.9,3629.1,1.6282]
[1733209600310,4.28486591,3631.7,3630.3,1.6282]
[1733209600850,2.75323,3632.1,3630.8,2.75414]
[1733209601149,4.28486591,3632.2,3631.3,2.75382]
[1733209601363,4.28486591,3632.2,3631.0,2.75399]
[1733209601652,0.42848659,3632.1,3631.1,2.75398]
[1733209601840,0.42848659,3632.1,3631.1,2.79702126]
[1733209602042,2.223697,3632.1,3631.1,2.79702126]
[1733209602343,2.223697,3632.1,3631.1,0.04304126]
[1733209602509,0.92616329,3632.0,3631.1,0.04304126]
[1733209602704,1.1775737,3632.0,3630.9,2.7541]
[1733209602906,0.03441948,3631.9,3630.3,1.6282]
[1733209603110,2.75354,3631.7,3630.3,4.38277]
[1733209603410,1.6484,3631.5,3630.4,0.04193586]
[1733209603609,0.86868659,3631.4,3630.4,0.04193586]
[1733209603918,0.86868659,3631.4,3630.3,4.38277]
[1733209603919,0.86868659,3631.4,3630.3,1.6282]
[1733209604118,0.86868659,3631.4,3630.4,2.7545]
[1733209604318,0.86868659,3631.4,3630.4,0.04192815]
[1733209604549,1.5729,3632.1,3630.8,2.75417]
[1733209604909,1.5729,3632.1,3630.9,0.04177337]
[1733209605155,0.03441963,3632.0,3630.9,0.04177337]
[1733209605321,0.03441963,3632.0,3630.8,2.75414]
[1733209605511,0.86454155,3631.9,3631.0,0.04171464]
[1733209605709,0.86454155,3631.9,3630.9,2.75411]
[1733209605710,0.86454155,3631.9,3631.1,0.01608949]
[1733209605931,1.6073,3632.7,3631.2,1.5925]
[1733209606130,2.75286,3632.6,3631.2,1.5925]
[1733209606362,1.6073,3632.7,3631.3,0.04146901]
[1733209606506,1.5367,3631.8,3630.5,4.34691]
[1733209606709,0.03442168,3631.7,3630.6,2.75433]
[1733209607036,0.43245417,3631.6,3630.6,2.79465975]
[1733209607409,0.43245417,3631.6,3630.5,1.5925]
[1733209607410,2.78810167,3631.5,3630.2,2.75465]
[1733209607611,4.71732008,3631.6,3630.7,0.03903086]
[1733209607843,4.71732008,3631.6,3630.1,0.55]
[1733209608060,4.71732008,3631.6,3630.8,0.03897984]
[1733209608218,4.71732008,3631.6,3630.1,0.55]
[1733209608422,0.62540201,3631.5,3630.9,0.03892882]
[1733209608607,0.62540201,3631.5,3630.2,2.972849]
[1733209608608,0.62540201,3631.5,3630.8,2.75419]
[1733209608828,1.5367,3631.8,3631.2,2.75387]
[1733209609019,0.1,3633.5,3630.9,1.61372882]
[1733209609020,1.6112,3632.3,3630.9,1.61372882]
[1733209609262,0.03441623,3632.2,3631.3,0.03798354]
[1733209609423,0.03441623,3632.2,3631.1,2.75397]
[1733209609623,2.75334,3632.0,3631.4,0.03793254]
[1733209609822,0.70726221,3631.9,3630.9,1.5748]
[1733209610019,1.6112,3632.3,3631.5,0.03788154]
[1733209610365,1.6112,3632.3,3631.2,2.75389]
[1733209610548,1.6112,3632.3,3631.6,0.03783054]
[1733209610718,1.6112,3632.3,3631.2,2.75389]
[1733209610920,1.6112,3632.3,3631.9,2.75337]
[1733209611120,1.595,3632.8,3631.6,2.75355]
[1733209611352,0.1595,3632.7,3632.0,0.03749155]
[1733209611627,0.1595,3632.7,3632.1,0.03744057]
[1733209611827,0.1595,3632.7,3631.3,0.01607049]
[1733209612039,0.19391193,3632.7,3632.2,0.03738959]
[1733209612365,0.1595,3632.7,3631.6,2.7536]
[1733209612668,0.450712,3632.6,3631.6,2.7536]
[1733209612963,1.67951198,3632.5,3631.7,0.03764451]
[1733209613373,1.6451,3632.5,3631.5,2.75367]
[1733209613557,1.6451,3632.5,3631.8,0.03741994]
[1733209613758,1.6451,3632.5,3631.5,2.75367]
[1733209613929,0.92929679,3632.4,3631.9,0.03739981]
[1733209614278,0.92929679,3632.4,3630.9,1.5748]
[1733209614432,0.92929679,3632.4,3632.0,0.03610387]
[1733209614763,0.92929679,3632.4,3631.4,2.75371]
[1733209614964,0.92929679,3632.4,3632.1,0.03605288]
[1733209615152,0.57779988,3632.3,3631.0,2.75406]
[1733209615466,0.57779988,3632.3,3631.5,2.75367]
[1733209615837,0.57779988,3632.3,3631.6,0.03636568]
[1733209616038,0.61221524,3632.3,3631.6,0.03636568]
[1733209616246,0.57779988,3632.3,3631.2,2.75386]
[1733209616565,1.6522,3632.1,3631.7,0.0362954]
[1733209616767,1.6522,3632.1,3630.4,1.5256]
[1733209617066,1.6522,3632.1,3630.5,0.05299189]
[1733209617273,1.6522,3632.1,3631.1,2.75397]
[1733209617565,2.75338,3631.9,3630.7,2.75425]
[1733209617869,0.440558,3631.9,3631.0,2.75405]
[1733209618168,0.440558,3631.9,3630.8,0.03675444]
[1733209618367,2.75337,3632.0,3631.1,0.0366014]
[1733209618539,1.6522,3632.1,3630.9,0.03670342]
[1733209618869,2.7534,3631.9,3631.0,0.03665241]
[1733209619023,5.93706591,3632.1,3631.0,0.03665241]
[1733209619227,2.75345,3631.9,3630.4,1.5256]
[1733209619429,0.86905159,3631.8,3631.1,0.0366014]
[1733209619673,0.86905159,3631.8,3630.9,2.75412]
[1733209619984,0.86905159,3631.8,3631.2,0.03655039]
[1733209620190,0.86905159,3631.8,3631.0,2.75401]
[1733209620344,0.86905159,3631.8,3630.5,2.75444]
[1733209620345,1.6522,3632.1,3631.6,2.75359]
[1733209620542,1.6522,3632.1,3630.4,1.5256]
[1733209620543,4.31928228,3632.0,3630.4,1.5256]
[1733209620840,1.6036,3631.3,3630.5,0.03567903]
[1733209621043,4.35744,3631.3,3629.5,1.62635292]
[1733209621284,0.86423059,3631.2,3630.3,2.75458]
[1733209621584,0.86423059,3631.2,3629.9,2.75489]
[1733209621739,1.6036,3632.0,3630.5,1.5428]
[1733209621944,1.6036,3632.0,3631.8,2.75342]
[1733209622145,1.6036,3632.5,3631.4,1.55887825]
[1733209622441,1.6036,3632.5,3632.0,2.75329]
[1733209622685,1.6036,3632.5,3631.5,2.80487101]
[1733209622864,1.6036,3632.9,3632.1,0.03486299]
[1733209623042,2.19244659,3632.9,3631.5,0.55]
[1733209623237,2.19244659,3632.9,3632.2,0.03481201]
[1733209623491,0.0344087,3632.8,3631.0,5.754]
[1733209623653,2.75286,3632.6,3632.3,0.03476103]
[1733209623988,0.87084346,3632.5,3631.6,2.7536]
[1733209624297,0.03441487,3632.4,3631.7,0.03506693]
[1733209624461,4.28486591,3632.1,3630.5,1.5969]
[1733209624777,4.2548,3631.3,3630.0,2.75478]
[1733209624950,3.60787659,3631.2,3630.0,2.75478]
[1733209625286,2.75412,3631.0,3629.7,0.2746]
[1733209625465,1.5009,3631.1,3629.7,0.2746]
[1733209625466,1.5009,3631.1,3630.3,2.75458]
[1733209625776,1.5009,3631.1,3629.9,0.2746]
[1733209625995,1.5009,3631.9,3630.1,2.75474]
[1733209626293,2.22938659,3631.9,3630.2,0.75419088]
[1733209626471,1.53531964,3631.9,3630.5,2.75438]
[1733209626665,1.5009,3631.9,3630.9,2.75406]
[1733209626869,1.5009,3631.9,3631.1,2.75391]
[1733209627075,1.5009,3631.9,3630.8,1.5969]
[1733209627693,5.78576591,3631.9,3630.3,0.2746]
[1733209627999,0.03442002,3631.8,3630.7,2.75423]
[1733209628162,0.03442002,3631.8,3630.3,2.75456]
[1733209628163,0.28676322,3631.8,3630.8,2.7542]
[1733209628347,0.25234411,3631.8,3630.8,2.7542]
[1733209628661,0.25234411,3631.8,3630.3,0.55]
[1733209628862,4.28486591,3632.4,3631.7,2.75347]
[1733209628863,0.25234411,3632.3,3631.7,2.75347]
[1733209629062,1.5285,3632.4,3631.2,1.6042]
[1733209629386,1.5285,3632.4,3631.3,2.75376]
[1733209629691,1.5285,3632.4,3631.2,1.6042]
[1733209629856,1.5285,3632.4,3631.8,2.75345]
[1733209630045,1.5285,3632.4,3631.9,0.01607307]
[1733209630249,1.5821,3632.8,3631.9,2.75337]
[1733209630452,2.04082563,3632.8,3631.9,2.75337]
[1733209631161,2.07523604,3632.8,3631.7,2.75351]
[1733209631386,1.83469627,3632.8,3631.8,2.75344]
[1733209631555,1.5821,3632.8,3631.4,0.55]
[1733209631761,1.5821,3632.8,3631.8,2.75344]
[1733209631996,0.45873263,3632.7,3631.8,2.75344]
[1733209632167,2.75289,3632.6,3631.5,2.7536]
[1733209632371,1.6357,3632.4,3630.9,3.30408]
[1733209632595,0.03441545,3632.3,3630.8,1.5277]
[1733209632782,0.28710131,3632.3,3631.3,2.75377]
[1733209632992,0.03441545,3632.3,3631.3,2.75377]
[1733209633198,0.16701154,3632.2,3631.3,2.75378]
[1733209633399,0.16701154,3632.2,3630.8,1.5277]
[1733209633781,1.88838586,3632.4,3631.5,2.75367]
[1733209633991,1.6357,3632.4,3631.5,2.75367]
[1733209634193,1.6357,3632.4,3631.6,0.03456249]
[1733209634366,0.03441602,3632.3,3631.6,0.03456249]
[1733209634996,1.6357,3632.4,3631.6,0.03456249]
[1733209635203,1.6357,3632.4,3631.9,2.75332]
[1733209635400,0.47537398,3634.1,3631.6,0.03456249]
[1733209635401,0.25268586,3632.8,3631.7,4.34523]
[1733209635615,1.5629,3632.9,3632.0,0.03435853]
[1733209635762,8.93,3634.4,3632.0,0.03435853]
[1733209635763,1.81558586,3633.5,3633.4,2.75224]
[1733209635963,1.5629,3633.5,3633.4,0.03374146]
[1733209636172,1.5629,3633.5,3633.4,2.75224]
[1733209636379,1.5629,3633.5,3632.8,2.75267]
[1733209636566,1.5629,3633.5,3633.4,0.03364504]
[1733209636995,1.5629,3633.5,3632.6,1.6617]
[1733209637160,1.5629,3633.5,3632.7,0.03350059]
[1733209637601,1.5629,3633.5,3633.0,2.7525]
[1733209637804,1.5629,3633.5,3633.1,0.0332852]
[1733209638018,1.71919,3633.5,3633.1,0.0332852]
[1733209638161,1.71919,3633.5,3632.2,2.75313]
[1733209638367,1.5629,3633.5,3632.3,0.56605744]
[1733209638686,1.55,3634.0,3633.5,2.75213]
[1733209638914,1.55,3634.0,3632.9,4.27581]
[1733209639114,1.5711,3634.5,3633.6,0.03303047]
[1733209639322,0.25268586,3634.6,3634.3,2.75156]
[1733209639517,0.25268586,3634.8,3634.3,2.75156]
[1733209639704,1.5711,3634.9,3634.4,0.03270013]
[1733209639899,1.5711,3634.9,3634.6,2.75133]
[1733209640242,1.6114,3635.5,3634.6,2.78362006]
[1733209641297,1.6445,3635.9,3634.6,4.94602006]
[1733209642349,0.75,3635.3,3634.6,5.44062207]
[1733209642515,0.75,3635.3,3635.2,2.75088]
[1733209644342,0.75,3635.3,3635.1,2.75095]
[1733209644944,0.75,3635.3,3634.6,2.1624]
[1733209645111,0.75,3635.3,3635.1,2.75094]
[1733209645450,0.75,3635.3,3635.1,3.301151]
[1733209646333,0.75,3635.3,3635.1,2.75094]
[1733209647230,0.75,3635.3,3635.2,0.55]
[1733209649337,0.75,3635.3,3635.2,3.30088]
[1733209650313,0.75,3635.3,3635.2,2.75088]
[1733209651315,0.75,3635.3,3634.7,0.55]
[1733209651543,0.75,3635.3,3634.6,2.75132]
[1733209651757,0.75,3635.3,3634.1,1.5769]
[1733209651903,0.75,3635.3,3635.1,2.75095]
[1733209652107,0.75,3635.3,3635.2,2.75088]
[1733209652799,0.75,3635.3,3635.2,3.30088]
[1733209653935,174.0,3636.0,3635.9,2.75035]
[1733209654134,174.0,3636.0,3635.9,6.57565]
[1733209654478,174.0,3636.0,3635.9,9.05496752]
[1733209654829,172.62486,3636.0,3635.9,9.05496752]
[1733209655050,164.62506,3636.0,3635.9,9.05496752]
[1733209655365,148.37442,3636.0,3635.9,9.05496752]
[1733209655589,138.99948,3636.0,3635.9,9.25496752]
[1733209655863,121.91299906,3636.0,3635.9,9.35496752]
[1733209656077,116.43752096,3636.0,3635.9,9.35496752]
[1733209656238,113.68724096,3636.0,3635.9,9.35496752]
[1733209656560,112.31210096,3636.0,3635.9,9.35496752]
[1733209657528,108.18668096,3636.0,3635.9,13.15735658]
[1733209657742,108.18668096,3636.0,3635.9,12.88205658]
[1733209657944,107.86437867,3636.0,3635.9,12.88205658]
[1733209658366,105.11409867,3636.0,3635.9,12.88205658]
[1733209658553,103.73895867,3636.0,3635.9,12.88205658]
[1733209659225,102.36381867,3636.0,3635.9,12.88205658]
[1733209659625,97.41785432,3636.0,3635.9,12.88205658]
[1733209660028,94.64027508,3636.0,3635.9,12.88205658]
[1733209660351,81.60428639,3636.0,3635.9,11.94783906]
[1733209660557,79.60326821,3636.0,3635.9,10.55323906]
[1733209661341,78.22812821,3636.0,3635.9,10.55323906]
[1733209661627,75.47784821,3636.0,3635.9,10.55323906]
[1733209661828,75.47784821,3636.0,3635.9,10.35323906]
[1733209662066,75.47784821,3636.0,3635.9,10.55323906]
[1733209662270,74.10270821,3636.0,3635.9,10.55323906]
[1733209662465,71.35242821,3636.0,3635.9,10.55323906]
[1733209662962,69.76829429,3636.0,3635.9,10.55323906]
[1733209663163,69.61609429,3636.0,3635.9,10.55323906]
[1733209663461,53.50460645,3636.0,3635.9,10.55323906]
[1733209663673,53.50460645,3636.0,3635.9,10.58167233]
[1733209663827,53.00921049,3636.0,3635.9,10.58167233]
[1733209664226,50.02943346,3636.0,3635.9,10.58167233]
[1733209664540,47.27915346,3636.0,3635.9,10.58167233]
[1733209665037,47.27915346,3636.0,3635.9,10.59189987]
[1733209665288,43.15373346,3636.0,3635.9,7.04189987]
[1733209666503,39.02831346,3636.0,3635.9,10.04189987]
[1733209666811,37.65317346,3636.0,3635.9,10.04189987]
[1733209667313,33.52775346,3636.0,3635.9,10.59189987]
[1733209667475,32.15261346,3636.0,3635.9,10.59189987]
[1733209668315,28.02719346,3636.0,3635.9,10.59189987]
[1733209668618,25.27691346,3636.0,3635.9,6.23951081]
[1733209668917,25.27691346,3636.0,3635.9,3.88891581]
[1733209669410,25.27691346,3636.0,3635.4,0.0779565]
[1733209669629,25.27691346,3636.0,3635.9,0.03215188]
[1733209669831,25.27691346,3636.0,3635.4,0.0779565]
[1733209670057,25.27691346,3636.0,3635.4,1.1783745]
[1733209670058,1.6075,3635.9,3635.4,1.1783745]
[1733209670331,1.6075,3635.9,3635.0,2.75096]
[1733209670551,1.6075,3635.9,3635.1,2.75095]
[1733209671220,1.6075,3635.9,3635.0,2.75101]
[1733209672021,1.6075,3635.9,3635.1,0.03014837]
[1733209672208,3.80238906,3635.5,3634.3,3.2753]
[1733209672430,3.80238906,3635.5,3635.0,3.0]
[1733209672630,3.80238906,3635.5,3634.2,2.75158]
[1733209672631,3.80238906,3635.5,3633.9,3.0]
[1733209673055,3.80238906,3635.5,3635.1,2.75094]
[1733209673242,3.80238906,3635.5,3634.0,2.88037494]
[1733209673243,1.5962,3635.4,3634.4,1.10071]
[1733209673456,1.5962,3635.4,3634.0,0.02859494]
[1733209673457,1.5962,3635.4,3635.2,0.02794038]
[1733209673768,2.13605891,3635.4,3633.7,1.100892]
[1733209674055,1.5962,3635.4,3635.0,2.75102]
[1733209674211,1.5962,3635.4,3633.9,0.3]
[1733209674410,1.5962,3635.4,3634.1,0.2]
[1733209674656,1.5962,3635.4,3635.2,2.7508]
[1733209674963,1.5962,3635.4,3635.3,2.7508]
[1733209675324,1.5962,3635.4,3635.3,2.77804836]
[1733209675744,1.5962,3635.4,3635.3,0.02724836]
[1733209675974,1.5962,3635.4,3635.3,2.77804836]
[1733209676179,1.5962,3635.4,3635.3,2.7508]
[1733209676328,1.5962,3635.4,3635.3,2.77804836]
[1733209676754,1.5962,3635.4,3635.3,0.02724836]
[1733209677161,1.5962,3635.4,3635.0,3.0]
[1733209677383,1.5962,3635.4,3635.1,2.75092]
[1733209677677,1.5962,3635.4,3635.1,2.77827015]
[1733209677884,1.5962,3635.4,3635.1,0.02735015]
[1733209678174,1.5962,3635.4,3635.3,2.7508]
[1733209678469,1.5962,3635.4,3635.3,0.02724836]
[1733209678969,1.5962,3635.4,3635.2,2.75087]
[1733209679175,1.5962,3635.4,3635.3,2.7508]
[1733209679580,1.5962,3635.4,3635.3,3.3008]
[1733209679962,1.5096,3635.9,3635.6,2.75054]
[1733209680249,1.5096,3635.9,3635.7,0.55]
[1733209680477,1.5096,3635.9,3635.6,0.55]
[1733209681064,1.5096,3635.9,3635.4,2.75072]
[1733209681261,1.5096,3635.9,3635.7,0.03015755]
[1733209681461,1.5096,3635.9,3635.6,0.55]
[1733209681702,1.5096,3635.9,3635.8,0.03009885]
[1733209681904,1.5096,3635.9,3635.7,0.03015755]
[1733209682234,1.5148,3635.8,3634.2,2.80082479]
[1733209682505,1.5148,3635.0,3634.4,2.75146]
[1733209682709,1.5148,3635.0,3634.2,0.32449479]
[1733209683008,1.5148,3635.0,3634.7,2.75124]
[1733209683209,1.5148,3635.0,3634.4,0.2753]
[1733209683368,1.5148,3635.0,3634.8,0.03838399]
[1733209683566,1.5148,3635.0,3634.4,0.2753]
[1733209683908,5.03177281,3635.9,3634.4,0.2753]
[1733209683909,1.5491,3634.5,3634.4,0.2753]
[1733209684131,1.5491,3634.5,3633.8,3.02723]
[1733209684296,1.5491,3634.5,3633.7,1.100892]
[1733209684636,1.5491,3634.5,3633.8,2.7519]
[1733209684798,1.5491,3634.5,3633.7,1.376192]
[1733209685137,1.5786,3635.0,3634.4,2.75148]
[1733209685290,1.5786,3635.0,3634.7,2.75119]
[1733209685626,1.5786,3635.0,3634.9,2.7511]
[1733209685929,25.27691346,3636.0,3635.0,0.55]
[1733209685930,1.5996,3635.9,3635.0,0.55]
[1733209686107,1.5996,3635.6,3634.7,0.55]
[1733209686310,3.80238906,3635.2,3634.7,0.55]
[1733209686512,1.5996,3635.1,3634.7,0.55]
[1733209686824,3.80238906,3635.2,3633.7,3.852842]
[1733209686825,0.03438915,3635.0,3633.7,3.852892]
[1733209687122,1.653,3634.9,3634.5,2.7514]
[1733209687321,1.653,3634.9,3633.8,2.75194]
[1733209687322,1.653,3634.9,3634.7,2.75123]
[1733209687624,1.653,3634.9,3633.7,1.100892]
[1733209687625,1.653,3634.9,3634.0,0.2753]
[1733209687786,1.653,3634.9,3634.4,0.2753]
[1733209687983,1.653,3634.9,3634.6,0.2753]
[1733209688297,1.653,3634.9,3634.8,0.55]
[1733209688783,1.653,3634.9,3634.6,0.2753]
[1733209688784,1.653,3634.9,3634.7,0.55]
[1733209689119,1.653,3634.9,3634.7,3.30125]
[1733209689482,1.653,3634.9,3634.8,3.30118]
[1733209689711,1.653,3634.9,3634.8,3.3285023]
[1733209690783,1.653,3634.9,3633.7,1.100892]
[1733209691228,3.80238906,3634.7,3633.8,0.0527438]
[1733209691434,1.563,3634.6,3633.8,0.0527438]
[1733209691787,1.563,3634.6,3634.1,2.7517]
[1733209692125,1.563,3634.6,3634.2,0.0459274]
[1733209692623,1.563,3634.6,3633.7,1.100892]
[1733209692789,0.5709303,3634.6,3634.3,0.04583192]
[1733209693122,0.1,3635.3,3632.7,1.101213]
[1733209693123,1.6198,3634.2,3632.7,1.101213]
[1733209693527,1.6198,3634.2,3633.6,2.75208]
[1733209693682,1.6198,3634.2,3633.3,2.75227]
[1733209693895,1.6198,3634.2,3633.7,0.04162676]
[1733209694115,3.80238906,3633.8,3632.8,0.2753]
[1733209694293,3.80238906,3633.8,3632.7,1.101213]
[1733209694294,1.561,3633.7,3632.7,1.101213]
[1733209694493,1.561,3633.7,3633.1,2.75245]
[1733209694911,1.561,3633.7,3633.2,0.05264931]
[1733209695367,1.561,3633.7,3632.8,2.75266]
[1733209695514,1.561,3633.7,3632.8,3.30269]
[1733209695723,1.561,3633.7,3633.2,0.55]
[1733209696086,1.561,3633.7,3633.4,0.55]
[1733209696524,1.561,3633.7,3633.5,0.0523218]
[1733209696726,1.561,3633.7,3632.3,6.0283]
[1733209696727,1.561,3633.7,3632.5,3.0]
[1733209697022,1.561,3633.7,3633.2,2.75238]
[1733209697427,1.561,3633.7,3633.3,0.05254013]
[1733209697648,1.561,3633.7,3633.4,0.55]
[1733209697784,1.561,3633.7,3633.6,3.30209]
[1733209698219,1.561,3633.7,3633.6,3.35430264]
[1733209698524,1.561,3633.7,3633.6,0.60221264]
[1733209700194,1.561,3633.7,3632.2,2.75307]
[1733209700195,1.557,3633.6,3632.2,2.75307]
[1733209700487,1.557,3633.6,3631.8,0.2753]
[1733209700488,1.557,3633.1,3631.8,0.2753]
[1733209700687,1.557,3633.1,3632.2,1.101563]
[1733209700916,1.557,3633.1,3632.4,2.75298]
[1733209701091,1.557,3633.1,3632.5,2.75288]
[1733209701292,1.557,3633.1,3632.3,2.75306]
[1733209701594,1.557,3633.1,3632.8,2.75268]
[1733209701933,1.557,3633.1,3632.3,2.75307]
[1733209702101,1.557,3633.1,3632.2,1.101563]
[1733209702305,1.557,3633.1,3633.0,2.75254]
[1733209702504,2.95126,3634.7,3633.4,2.75223]
[1733209702505,1.5399,3634.1,3633.4,2.75223]
[1733209702711,1.5399,3634.1,3633.5,0.55]
[1733209702911,1.5399,3634.1,3633.6,2.75204]
[1733209703110,1.5399,3634.1,3633.7,0.55]
[1733209703345,1.5399,3634.1,3633.9,2.75184]
[1733209703501,1.5399,3634.1,3633.7,0.55]
[1733209704033,1.5399,3634.1,3630.3,2.896]
[1733209704034,1.5518,3634.0,3632.4,0.2753]
[1733209704238,1.5518,3633.6,3632.4,0.2753]
[1733209704387,3.80238906,3633.7,3631.5,0.02459285]
[1733209704388,1.5518,3633.4,3631.5,0.02459285]
[1733209704588,1.5518,3633.4,3632.4,2.75293]
[1733209704794,1.5518,3633.1,3631.7,1.101593]
[1733209705008,1.5518,3633.1,3632.7,2.75274]
[1733209705292,1.5518,3633.1,3632.7,2.75275]
[1733209705487,1.5518,3633.1,3631.7,1.376893]
[1733209705687,1.5518,3633.1,3632.7,3.30274]
[1733209706628,1.5518,3633.1,3632.7,0.55]
[1733209706851,1.5518,3633.1,3632.6,0.55]
[1733209707342,1.5518,3633.1,3632.9,2.75261]
[1733209707495,1.5518,3633.1,3632.0,2.7533]
[1733209707855,1.5518,3633.1,3632.5,2.75292]
[1733209708345,1.5518,3633.1,3632.5,2.75287]
[1733209708489,1.5518,3633.1,3632.2,2.75309]
[1733209708805,1.58620695,3633.1,3632.2,2.75309]
[1733209709140,1.5823076,3633.0,3631.7,1.376893]
[1733209709358,1.5479,3632.6,3631.7,2.75351]
[1733209709633,1.5479,3632.4,3630.7,2.75428]
[1733209709831,1.5479,3632.4,3631.3,1.101834]
[1733209710193,3.1,3633.5,3632.3,2.75307]
[1733209710194,1.5479,3632.9,3632.3,2.75307]
[1733209710389,1.5334,3633.9,3633.6,2.75208]
[1733209710707,1.5334,3633.9,3632.7,2.75276]
[1733209710708,1.78535432,3633.9,3632.8,2.75269]
[1733209710911,1.81975224,3633.9,3633.2,0.55]
[1733209711087,1.78535432,3633.9,3633.2,0.55]
[1733209711293,1.5334,3633.9,3633.6,0.55]
[1733209711708,1.56779847,3633.9,3633.2,0.55]
[1733209712033,3.80238906,3634.0,3632.4,6.02823]
[1733209712034,1.6245,3633.7,3632.6,2.75282]
[1733209712192,1.6245,3633.6,3632.4,0.2753]
[1733209712395,1.6245,3633.4,3632.4,2.75292]
[1733209712595,1.6245,3633.4,3632.1,2.75317]
[1733209712800,1.6245,3633.2,3631.9,2.75337]
[1733209713099,1.6245,3633.0,3632.4,2.75298]
[1733209713434,1.6245,3633.0,3631.8,0.2753]
[1733209713591,1.6245,3633.0,3631.9,0.2753]
[1733209713936,1.6245,3633.0,3632.7,2.75275]
[1733209714094,1.6245,3633.0,3631.9,0.2753]
[1733209714446,1.6245,3633.0,3632.0,0.55]
[1733209714733,1.6245,3633.0,3632.1,3.55]
[1733209714894,1.6245,3633.0,3632.2,0.55]
[1733209715094,1.6245,3633.0,3632.4,2.75299]
[1733209715449,1.6245,3633.0,3632.2,0.55]
[1733209715450,1.6245,3633.0,3632.5,2.75291]
[1733209715750,1.6042,3632.8,3632.2,0.55]
[1733209716037,1.6042,3632.8,3632.1,3.0]
[1733209716238,1.6042,3632.8,3631.7,2.75346]
[1733209716533,1.6042,3632.8,3631.9,0.2753]
[1733209716843,3.80238906,3632.5,3631.5,0.02459285]
[1733209717142,1.5279,3632.3,3631.5,0.02459285]
[1733209717433,1.63441684,3632.2,3631.5,0.02459285]
[1733209717798,1.6,3632.2,3631.6,0.04597026]
[1733209718007,1.6091,3632.0,3631.5,0.02459285]
[1733209718213,1.6091,3631.9,3631.7,0.04587465]
[1733209718443,0.03442028,3631.8,3631.6,0.04086246]
[1733209718608,0.03442028,3631.8,3631.0,2.75404]
[1733209718800,1.6091,3631.7,3630.7,1.102034]
[1733209718994,1.6091,3631.5,3630.7,2.75428]
[1733209719534,1.6091,3631.3,3630.4,2.75445]
[1733209719735,1.6091,3631.3,3630.4,2.75448]
[1733209719896,1.6091,3631.3,3630.2,2.75466]
[1733209720101,1.6435251,3631.2,3630.2,2.75466]
[1733209720726,1.6435251,3631.2,3630.0,2.75481]
[1733209720907,1.6091,3630.9,3630.0,2.75481]
[1733209721113,1.6091,3630.8,3630.1,2.75473]
[1733209721342,1.6091,3630.8,3629.4,0.75]
[1733209721343,1.6091,3630.6,3629.4,0.75]
[1733209721496,1.6091,3630.6,3630.1,2.75472]
[1733209721702,1.6091,3630.6,3629.4,0.75]
[1733209721703,1.6091,3630.6,3629.5,1.1024]
[1733209722099,1.6091,3630.6,3629.8,2.75497]
[1733209722339,1.6091,3630.6,3629.5,1.1024]
[1733209722558,1.6091,3630.6,3630.0,3.0]
[1733209722842,1.6091,3630.6,3630.1,0.55]
[1733209723059,0.03443263,3630.5,3629.8,6.30496]
[1733209723217,0.03443263,3630.5,3629.5,2.75518]
[1733209723218,1.6103,3630.4,3629.5,2.75518]
[1733209723406,1.6103,3630.4,3629.4,1.852417]
[1733209723600,1.6447372,3630.4,3629.4,1.852417]
[1733209723827,2.20588515,3630.4,3629.4,1.852417]
[1733209724016,1.6103,3630.3,3629.4,1.852417]
[1733209724341,0.03443645,3630.2,3629.4,3.50526]
[1733209724527,0.03443645,3630.2,3629.5,0.02704661]
[1733209724730,3.80238906,3630.0,3629.5,0.57704661]
[1733209724931,1.5104,3629.8,3629.5,0.02704661]
[1733209725139,1.5104,3629.6,3629.5,0.02704661]
[1733209725506,1.5104,3629.6,3628.4,2.75596]
[1733209725507,1.5104,3629.4,3628.2,1.102551]
[1733209725706,1.5104,3628.6,3627.5,2.7567]
[1733209725951,1.5104,3628.6,3627.0,2.75708]
[1733209725952,3.80238906,3628.1,3627.0,2.75708]
[1733209726132,1.5104,3628.0,3627.6,0.03128721]
[1733209726442,1.54485763,3628.0,3626.5,0.08173523]
[1733209726601,1.6628,3627.2,3626.5,0.08173523]
[1733209727057,1.6628,3627.0,3626.6,0.02908626]
[1733209727257,0.03446842,3626.9,3626.6,0.02908626]
[1733209727456,1.6628,3627.1,3626.5,0.08173523]
[1733209727665,1.6628,3626.7,3626.5,0.08173523]
[1733209727816,0.03447179,3626.6,3626.5,1.1e-07]
[1733209728454,1.6628,3626.7,3626.5,1.1e-07]
[1733209728820,1.69727442,3626.7,3626.5,1.1e-07]
[1733209729384,1.69727443,3626.7,3626.5,1.1e-07]
[1733209729548,0.56996635,3626.6,3626.5,1.1e-07]
[1733209729963,1.69727443,3626.7,3626.5,1.1e-07]
[1733209730975,1.89727443,3626.7,3626.5,1.1e-07]
[1733209731160,1.6628,3626.7,3626.5,1.1e-07]
[1733209732383,1.81047488,3626.6,3626.5,1.1e-07]
[1733209732542,1.576,3626.4,3624.8,2.75876]
[1733209732748,1.576,3625.7,3624.6,2.75892]